[Event "*** Titled Tuesday Blitz"]
[Site "Chess.com"]
[Date "2018.06.05"]
[Round "7"]
[White "Alexandr_Predke"]
[Black "RiskyDecision"]
[Result "1-0"]
[WhiteElo "2653"]
[BlackElo "2503"]
[TimeControl "180+2"]
[EndTime "14:42:12 PDT"]
[Termination "Alexandr_Predke won on time"]

1. Nc3 {[%clk 0:02:59.9]} 1... d5 {[%clk 0:02:54.2]} 2. e4 {[%clk 0:02:59.7]}
2... dxe4 {[%clk 0:02:50.7]} 3. Nxe4 {[%clk 0:03:01.2]} 3... Nd7 {[%clk
0:02:51.4]} 4. Bc4 {[%clk 0:02:54]} 4... e6 {[%clk 0:02:50]} 5. Nf3 {[%clk
0:02:50.1]} 5... Ngf6 {[%clk 0:02:45]} 6. Nxf6+ {[%clk 0:02:31.8]} 6... Nxf6
{[%clk 0:02:43.5]} 7. d4 {[%clk 0:02:29.3]} 7... Be7 {[%clk 0:02:38.9]} 8. O-O
{[%clk 0:02:27.8]} 8... O-O {[%clk 0:02:40]} 9. Qe2 {[%clk 0:02:28.6]} 9... a6
{[%clk 0:02:40.6]} 10. a4 {[%clk 0:02:03]} 10... b6 {[%clk 0:02:41.3]} 11. Rd1
{[%clk 0:02:02.5]} 11... Bb7 {[%clk 0:02:42.1]} 12. Ne5 {[%clk 0:02:01.2]} 12...
Nd5 {[%clk 0:02:24.3]} 13. Qg4 {[%clk 0:01:53.1]} 13... Bf6 {[%clk 0:02:21.4]}
14. Ra3 {[%clk 0:01:44.4]} 14... c5 {[%clk 0:02:14]} 15. Rh3 {[%clk 0:01:32.9]}
15... g6 {[%clk 0:01:23.7]} 16. Bh6 {[%clk 0:01:22.8]} 16... Re8 {[%clk
0:01:22.1]} 17. Bd3 {[%clk 0:01:05.9]} 17... Ne7 {[%clk 0:00:58.7]} 18. Bg5
{[%clk 0:00:24.1]} 18... Bxg5 {[%clk 0:00:55.9]} 19. Qxg5 {[%clk 0:00:24.7]}
19... Nf5 {[%clk 0:00:57.2]} 20. Nxf7 {[%clk 0:00:23.9]} 20... Qxg5 {[%clk
0:00:29.1]} 21. Nxg5 {[%clk 0:00:25.3]} 21... h5 {[%clk 0:00:17.4]} 22. dxc5
{[%clk 0:00:21.6]} 22... bxc5 {[%clk 0:00:18.6]} 23. Bc4 {[%clk 0:00:20.7]}
23... Kg7 {[%clk 0:00:08.9]} 24. Nxe6+ {[%clk 0:00:19.6]} 24... Kf6 {[%clk
0:00:09.9]} 25. Nc7 {[%clk 0:00:20]} 25... Red8 {[%clk 0:00:11.1]} 26. Re1
{[%clk 0:00:18.5]} 26... Rac8 {[%clk 0:00:11.8]} 27. Ne6 {[%clk 0:00:13.7]}
27... Rd2 {[%clk 0:00:12.4]} 28. Nf4 {[%clk 0:00:13.4]} 28... Nd4 {[%clk
0:00:09.7]} 29. c3 {[%clk 0:00:13.9]} 29... Nc2 {[%clk 0:00:10.3]} 30. Re6+
{[%clk 0:00:13.9]} 30... Kf5 {[%clk 0:00:11.5]} 31. Rh4 {[%clk 0:00:06.3]} 31...
Rd1+ {[%clk 0:00:10.1]} 32. Bf1 {[%clk 0:00:07.8]} 32... g5 {[%clk 0:00:10.8]}
33. Re7 {[%clk 0:00:07.7]} 33... gxh4 {[%clk 0:00:10.8]} 34. Rf7+ {[%clk
0:00:08.7]} 34... Ke4 {[%clk 0:00:05.2]} 35. f3+ {[%clk 0:00:06]} 35... Ke3
{[%clk 0:00:05.2]} 36. Nxh5 {[%clk 0:00:07]} 36... Bd5 {[%clk 0:00:04.7]} 37.
Re7+ {[%clk 0:00:08]} 37... Kd2 {[%clk 0:00:05.7]} 38. Kf2 {[%clk 0:00:09.3]}
38... Rd8 {[%clk 0:00:05.2]} 39. Nf4 {[%clk 0:00:09.5]} 39... Bb3 {[%clk
0:00:03.7]} 40. Be2 {[%clk 0:00:10.5]} 40... Re1 {[%clk 0:00:03.7]} 41. g4
{[%clk 0:00:11.1]} 41... hxg3+ {[%clk 0:00:04.4]} 42. hxg3 {[%clk 0:00:12.3]}
42... Rh1 {[%clk 0:00:03.8]} 43. Kg2 {[%clk 0:00:12.8]} 43... Re1 {[%clk
0:00:04.5]} 44. Kf2 {[%clk 0:00:13.9]} 44... Rb1 {[%clk 0:00:05.6]} 45. g4
{[%clk 0:00:15.3]} 45... Rh8 {[%clk 0:00:06.6]} 46. Rd7+ {[%clk 0:00:15.1]}
46... Kc1 {[%clk 0:00:05.5]} 47. Nd3+ {[%clk 0:00:16.4]} 47... Kd2 {[%clk
0:00:04.5]} 48. Nxc5+ {[%clk 0:00:17.8]} 1-0

[Event "*** Titled Tuesday Blitz"]
[Site "Chess.com"]
[Date "2018.06.05"]
[Round "7"]
[White "MPGM"]
[Black "goodtimes2020"]
[Result "1-0"]
[WhiteElo "2382"]
[BlackElo "2270"]
[TimeControl "180+2"]
[EndTime "14:42:18 PDT"]
[Termination "MPGM won by checkmate"]

1. c4 {[%clk 0:02:59.3]} 1... e6 {[%clk 0:03:00.7]} 2. d4 {[%clk 0:02:59.5]}
2... b6 {[%clk 0:03:00]} 3. Nf3 {[%clk 0:02:54]} 3... Bb7 {[%clk 0:03:00.6]} 4.
g3 {[%clk 0:02:55.1]} 4... f5 {[%clk 0:03:01.6]} 5. Bg2 {[%clk 0:02:55.3]} 5...
Nf6 {[%clk 0:03:03.2]} 6. O-O {[%clk 0:02:56.3]} 6... Be7 {[%clk 0:03:04.1]} 7.
b3 {[%clk 0:02:55.5]} 7... O-O {[%clk 0:03:05]} 8. Bb2 {[%clk 0:02:56.6]} 8...
d6 {[%clk 0:03:05.9]} 9. Nbd2 {[%clk 0:02:50.9]} 9... Nbd7 {[%clk 0:03:06.5]}
10. Ng5 {[%clk 0:02:32.2]} 10... Bxg2 {[%clk 0:02:50.4]} 11. Kxg2 {[%clk
0:02:25]} 11... Qc8 {[%clk 0:02:27.7]} 12. Nxe6 {[%clk 0:02:24.7]} 12... Qb7+
{[%clk 0:02:28.3]} 13. d5 {[%clk 0:02:23.6]} 13... Rfe8 {[%clk 0:02:29.3]} 14.
Nf3 {[%clk 0:02:15.8]} 14... Nc5 {[%clk 0:02:14.6]} 15. Nxc5 {[%clk 0:02:03.5]}
15... dxc5 {[%clk 0:02:13.9]} 16. Qd3 {[%clk 0:01:59.7]} 16... Ne4 {[%clk
0:02:08.9]} 17. Rad1 {[%clk 0:01:59.8]} 17... Rad8 {[%clk 0:01:58.2]} 18. Nd2
{[%clk 0:01:43]} 18... Nd6 {[%clk 0:01:44.4]} 19. Qf3 {[%clk 0:01:37.3]} 19...
Rf8 {[%clk 0:01:37.3]} 20. Rfe1 {[%clk 0:01:34]} 20... Bf6 {[%clk 0:01:30]} 21.
Bxf6 {[%clk 0:01:34.4]} 21... Rxf6 {[%clk 0:01:30.5]} 22. Qf4 {[%clk 0:01:20.8]}
22... Re8 {[%clk 0:01:28.8]} 23. e3 {[%clk 0:01:13]} 23... h6 {[%clk 0:01:09.6]}
24. h4 {[%clk 0:01:11.8]} 24... Ne4 {[%clk 0:01:01.9]} 25. Nxe4 {[%clk
0:01:12.1]} 25... Rxe4 {[%clk 0:01:02.8]} 26. Qf3 {[%clk 0:01:13.6]} 26... Qc8
{[%clk 0:00:50.9]} 27. Rd2 {[%clk 0:01:03.3]} 27... Qd7 {[%clk 0:00:48.7]} 28.
Red1 {[%clk 0:01:03.8]} 28... Qd6 {[%clk 0:00:49.8]} 29. h5 {[%clk 0:00:55.2]}
29... a5 {[%clk 0:00:50.3]} 30. Rd3 {[%clk 0:00:53.7]} 30... Kf7 {[%clk
0:00:49.1]} 31. Rh1 {[%clk 0:00:52.4]} 31... Rg4 {[%clk 0:00:47.4]} 32. Rd2
{[%clk 0:00:45.7]} 32... Qe5 {[%clk 0:00:43.7]} 33. d6 {[%clk 0:00:36.6]} 33...
Rxd6 {[%clk 0:00:43.8]} 34. Rxd6 {[%clk 0:00:37.5]} 34... cxd6 {[%clk
0:00:43.7]} 35. Rd1 {[%clk 0:00:38.5]} 35... Ke6 {[%clk 0:00:36.4]} 36. Qa8
{[%clk 0:00:36]} 36... Qe4+ {[%clk 0:00:37.3]} 37. Qxe4+ {[%clk 0:00:35.6]}
37... Rxe4 {[%clk 0:00:38]} 38. Kf3 {[%clk 0:00:35.8]} 38... Re5 {[%clk
0:00:25.5]} 39. Kf4 {[%clk 0:00:34.2]} 39... Re4+ {[%clk 0:00:26.2]} 40. Kf3
{[%clk 0:00:35.6]} 40... Re5 {[%clk 0:00:25.9]} 41. Ke2 {[%clk 0:00:21.3]} 41...
Kf6 {[%clk 0:00:15.8]} 42. Rxd6+ {[%clk 0:00:19.4]} 42... Kg5 {[%clk 0:00:15.6]}
43. Rg6+ {[%clk 0:00:20]} 43... Kxh5 {[%clk 0:00:16.9]} 44. Rxg7 {[%clk
0:00:21.5]} 44... Re6 {[%clk 0:00:17.3]} 45. Kf3 {[%clk 0:00:22.1]} 45... Rd6
{[%clk 0:00:17.3]} 46. Kf4 {[%clk 0:00:22.2]} 46... Rd2 {[%clk 0:00:18]} 47. f3
{[%clk 0:00:23]} 47... Rxa2 {[%clk 0:00:17.8]} 48. Kxf5 {[%clk 0:00:24.3]} 48...
Rf2 {[%clk 0:00:18.6]} 49. f4 {[%clk 0:00:24]} 49... Rf3 {[%clk 0:00:19.5]} 50.
Rg4 {[%clk 0:00:23.8]} 50... Rxe3 {[%clk 0:00:13.4]} 51. Rh4# {[%clk 0:00:24.4]}
1-0

[Event "*** Titled Tuesday Blitz"]
[Site "Chess.com"]
[Date "2018.06.05"]
[Round "7"]
[White "Justmig"]
[Black "chessking2151"]
[Result "0-1"]
[WhiteElo "2609"]
[BlackElo "2456"]
[TimeControl "180+2"]
[EndTime "14:42:40 PDT"]
[Termination "chessking2151 won by checkmate"]

1. e4 {[%clk 0:03:00.1]} 1... c5 {[%clk 0:03:01]} 2. Nf3 {[%clk 0:03:01]} 2...
e6 {[%clk 0:02:56.3]} 3. d4 {[%clk 0:03:01.9]} 3... cxd4 {[%clk 0:02:57.4]} 4.
Bg5 {[%clk 0:03:03]} 4... Qa5+ {[%clk 0:02:48.7]} 5. c3 {[%clk 0:03:02.8]} 5...
Nc6 {[%clk 0:02:38.5]} 6. b4 {[%clk 0:03:02]} 6... Qb6 {[%clk 0:02:35.7]} 7. b5
{[%clk 0:03:02.3]} 7... Nce7 {[%clk 0:02:25.7]} 8. cxd4 {[%clk 0:02:57.2]} 8...
d5 {[%clk 0:02:23.5]} 9. e5 {[%clk 0:02:36.5]} 9... Bd7 {[%clk 0:02:17.5]} 10.
Nc3 {[%clk 0:02:32.6]} 10... Nf5 {[%clk 0:02:16.1]} 11. Bd3 {[%clk 0:01:48.1]}
11... Bb4 {[%clk 0:02:13.8]} 12. Bd2 {[%clk 0:01:47.1]} 12... Nxd4 {[%clk
0:02:08.7]} 13. O-O {[%clk 0:01:47.9]} 13... Nxf3+ {[%clk 0:02:05.6]} 14. Qxf3
{[%clk 0:01:49.8]} 14... Ne7 {[%clk 0:02:03.2]} 15. Qg3 {[%clk 0:01:43.3]} 15...
Qa5 {[%clk 0:01:29.9]} 16. Rfc1 {[%clk 0:01:23.9]} 16... Rc8 {[%clk 0:00:59.2]}
17. Bf1 {[%clk 0:00:23.8]} 17... d4 {[%clk 0:00:29.3]} 18. Ne4 {[%clk
0:00:23.6]} 18... Bxd2 {[%clk 0:00:27.4]} 19. Rxc8+ {[%clk 0:00:21]} 19... Nxc8
{[%clk 0:00:22.8]} 20. Qxg7 {[%clk 0:00:22.9]} 20... Rf8 {[%clk 0:00:21.6]} 21.
Rd1 {[%clk 0:00:11.4]} 21... Bb4 {[%clk 0:00:14.7]} 22. Nf6+ {[%clk 0:00:11.9]}
22... Kd8 {[%clk 0:00:14.6]} 23. Rxd4 {[%clk 0:00:12.7]} 23... Nb6 {[%clk
0:00:16.1]} 24. Qg5 {[%clk 0:00:05.4]} 24... Be7 {[%clk 0:00:16.4]} 25. Qh6
{[%clk 0:00:03.9]} 25... Qc3 {[%clk 0:00:11.9]} 26. Rd3 {[%clk 0:00:03.2]} 26...
Qxe5 {[%clk 0:00:11.6]} 27. Nxd7 {[%clk 0:00:02.6]} 27... Nxd7 {[%clk
0:00:12.6]} 28. Qd2 {[%clk 0:00:04]} 28... Qc7 {[%clk 0:00:11]} 29. g3 {[%clk
0:00:05.4]} 29... Kc8 {[%clk 0:00:11.7]} 30. Qh6 {[%clk 0:00:06.2]} 30... Rd8
{[%clk 0:00:12.4]} 31. Qxh7 {[%clk 0:00:07.2]} 31... Ne5 {[%clk 0:00:11.4]} 32.
Re3 {[%clk 0:00:06.6]} 32... Bc5 {[%clk 0:00:11.5]} 33. Re2 {[%clk 0:00:05.5]}
33... Nd3 {[%clk 0:00:09.6]} 34. Kg2 {[%clk 0:00:04.6]} 34... Bxf2 {[%clk
0:00:06.3]} 35. Rd2 {[%clk 0:00:04]} 35... Ne1+ {[%clk 0:00:05.9]} 36. Kxf2
{[%clk 0:00:04]} 36... Rxd2+ {[%clk 0:00:07]} 37. Ke3 {[%clk 0:00:03.7]} 37...
Qc3+ {[%clk 0:00:08.5]} 38. Kf4 {[%clk 0:00:04]} 38... Rf2+ {[%clk 0:00:09.8]}
39. Kg5 {[%clk 0:00:04.3]} 39... Qe5+ {[%clk 0:00:11.1]} 40. Kh6 {[%clk
0:00:03.6]} 40... Rf6+ {[%clk 0:00:12]} 41. Kg7 {[%clk 0:00:03.8]} 41... Rg6+
{[%clk 0:00:13.2]} 42. Kf8 {[%clk 0:00:04.3]} 42... Qd6+ {[%clk 0:00:13.9]} 43.
Kxf7 {[%clk 0:00:04.9]} 43... Rg5 {[%clk 0:00:14.2]} 44. Qh8+ {[%clk 0:00:04.2]}
44... Kc7 {[%clk 0:00:14.1]} 45. Qc3+ {[%clk 0:00:04.9]} 45... Rc5 {[%clk
0:00:15.1]} 46. Qxe1 {[%clk 0:00:05.5]} 46... Rf5+ {[%clk 0:00:16.1]} 47. Kg6
{[%clk 0:00:06.6]} 47... Rf3 {[%clk 0:00:06.3]} 48. Qc1+ {[%clk 0:00:06.6]}
48... Kb8 {[%clk 0:00:05.5]} 49. Be2 {[%clk 0:00:06.9]} 49... e5+ {[%clk
0:00:06.1]} 50. Kh5 {[%clk 0:00:06.5]} 50... Rf5+ {[%clk 0:00:06.7]} 51. Kg4
{[%clk 0:00:07.1]} 51... Qe6 {[%clk 0:00:07.4]} 52. Kh4 {[%clk 0:00:03.6]} 52...
Rf2 {[%clk 0:00:08.5]} 53. Bg4 {[%clk 0:00:03.9]} 53... Rxh2+ {[%clk 0:00:08.7]}
54. Kg5 {[%clk 0:00:05]} 54... Qe7+ {[%clk 0:00:10.1]} 55. Kf5 {[%clk
0:00:05.9]} 55... Rf2+ {[%clk 0:00:11.2]} 56. Ke4 {[%clk 0:00:06.6]} 56... Qb4+
{[%clk 0:00:12.5]} 57. Ke3 {[%clk 0:00:07.6]} 57... Qd4# {[%clk 0:00:13.3]} 0-1

[Event "*** Titled Tuesday Blitz"]
[Site "Chess.com"]
[Date "2018.06.05"]
[Round "7"]
[White "51616516516"]
[Black "Jadeit90"]
[Result "1/2-1/2"]
[WhiteElo "2297"]
[BlackElo "2200"]
[TimeControl "180+2"]
[EndTime "14:42:48 PDT"]
[Termination "Game drawn by stalemate"]

1. d4 {[%clk 0:03:01.9]} 1... g6 {[%clk 0:03:00.5]} 2. Nf3 {[%clk 0:03:00.3]}
2... Bg7 {[%clk 0:03:01.8]} 3. g3 {[%clk 0:03:01.8]} 3... c5 {[%clk 0:03:03.2]}
4. Bg2 {[%clk 0:02:58.6]} 4... cxd4 {[%clk 0:03:04.5]} 5. Nxd4 {[%clk
0:03:00.5]} 5... Nc6 {[%clk 0:03:06.2]} 6. Nb3 {[%clk 0:02:55.2]} 6... Nf6
{[%clk 0:03:07.4]} 7. O-O {[%clk 0:02:55.5]} 7... O-O {[%clk 0:03:09.3]} 8. c4
{[%clk 0:02:54.2]} 8... a5 {[%clk 0:03:10.2]} 9. a4 {[%clk 0:02:52.1]} 9... d6
{[%clk 0:03:11.5]} 10. Nc3 {[%clk 0:02:52]} 10... Be6 {[%clk 0:03:12.5]} 11. c5
{[%clk 0:02:48.3]} 11... d5 {[%clk 0:03:11.5]} 12. Nb5 {[%clk 0:02:32.9]} 12...
Qd7 {[%clk 0:03:09.1]} 13. Bf4 {[%clk 0:02:28.2]} 13... Bh3 {[%clk 0:03:06.2]}
14. Rc1 {[%clk 0:02:23.9]} 14... Bxg2 {[%clk 0:03:05.3]} 15. Kxg2 {[%clk
0:02:25.8]} 15... e5 {[%clk 0:02:58.4]} 16. Bg5 {[%clk 0:02:21.4]} 16... Ne4
{[%clk 0:02:58.2]} 17. Be3 {[%clk 0:02:19.1]} 17... d4 {[%clk 0:02:56.3]} 18.
Bd2 {[%clk 0:02:13.7]} 18... Rad8 {[%clk 0:02:53.9]} 19. f3 {[%clk 0:02:14]}
19... Nxd2 {[%clk 0:02:51.1]} 20. Qxd2 {[%clk 0:02:14.7]} 20... Ne7 {[%clk
0:02:52.2]} 21. Nxa5 {[%clk 0:02:10.3]} 21... Nd5 {[%clk 0:02:46.5]} 22. Nc4
{[%clk 0:02:11.8]} 22... h5 {[%clk 0:02:36]} 23. Nb6 {[%clk 0:02:06.1]} 23...
Ne3+ {[%clk 0:02:35.5]} 24. Kg1 {[%clk 0:02:02.6]} 24... Qh3 {[%clk 0:02:32.6]}
25. Rf2 {[%clk 0:02:03.9]} 25... Bh6 {[%clk 0:02:27.7]} 26. Qe1 {[%clk
0:02:02.9]} 26... h4 {[%clk 0:02:21.7]} 27. g4 {[%clk 0:01:41.5]} 27... f5
{[%clk 0:01:56.5]} 28. g5 {[%clk 0:01:35]} 28... Bxg5 {[%clk 0:01:55.9]} 29. Nc4
{[%clk 0:01:36.9]} 29... Nxc4 {[%clk 0:01:47.1]} 30. Rxc4 {[%clk 0:01:37.5]}
30... Be3 {[%clk 0:01:48.1]} 31. Nd6 {[%clk 0:01:30.2]} 31... e4 {[%clk
0:01:29]} 32. Kh1 {[%clk 0:01:26.9]} 32... Bxf2 {[%clk 0:01:25.2]} 33. Qxf2
{[%clk 0:01:28.8]} 33... e3 {[%clk 0:01:23.8]} 34. Qg2 {[%clk 0:01:24]} 34...
Qxg2+ {[%clk 0:01:23.4]} 35. Kxg2 {[%clk 0:01:25.9]} 35... d3 {[%clk 0:01:08]}
36. exd3 {[%clk 0:01:25.2]} 36... b6 {[%clk 0:01:00.2]} 37. d4 {[%clk
0:01:04.8]} 37... bxc5 {[%clk 0:01:01]} 38. dxc5 {[%clk 0:01:05.7]} 38... f4
{[%clk 0:00:46.7]} 39. b4 {[%clk 0:00:58.5]} 39... h3+ {[%clk 0:00:44.3]} 40.
Kf1 {[%clk 0:00:58.7]} 40... g5 {[%clk 0:00:45.3]} 41. Ke2 {[%clk 0:00:51.7]}
41... g4 {[%clk 0:00:44.5]} 42. Re4 {[%clk 0:00:43.5]} 42... gxf3+ {[%clk
0:00:45.2]} 43. Kxf3 {[%clk 0:00:44.4]} 43... Rf6 {[%clk 0:00:43.4]} 44. b5
{[%clk 0:00:34.5]} 44... Rfxd6 {[%clk 0:00:26]} 45. cxd6 {[%clk 0:00:34.1]}
45... Rxd6 {[%clk 0:00:27.9]} 46. Rxf4 {[%clk 0:00:35]} 46... Rd2 {[%clk
0:00:28.6]} 47. Kxe3 {[%clk 0:00:31.6]} 47... Rxh2 {[%clk 0:00:29.6]} 48. Rh4
{[%clk 0:00:25.2]} 48... Ra2 {[%clk 0:00:26.6]} 49. Kf3 {[%clk 0:00:19.7]} 49...
h2 {[%clk 0:00:26]} 50. Kg3 {[%clk 0:00:16.9]} 50... Rxa4 {[%clk 0:00:23.5]} 51.
Rxh2 {[%clk 0:00:17]} 51... Rb4 {[%clk 0:00:24.5]} 52. Rh5 {[%clk 0:00:17.3]}
52... Kf7 {[%clk 0:00:25.7]} 53. Kf3 {[%clk 0:00:18.2]} 53... Ke6 {[%clk
0:00:24.9]} 54. Ke3 {[%clk 0:00:19.1]} 54... Kd6 {[%clk 0:00:26.1]} 55. Kd3
{[%clk 0:00:20.4]} 55... Rg4 {[%clk 0:00:26.4]} 56. Kc3 {[%clk 0:00:20.5]} 56...
Kc7 {[%clk 0:00:27.6]} 57. Rh6 {[%clk 0:00:20.2]} 57... Kb7 {[%clk 0:00:27.8]}
58. Kb3 {[%clk 0:00:21.2]} 58... Kc7 {[%clk 0:00:29]} 59. Rf6 {[%clk 0:00:21.6]}
59... Kb7 {[%clk 0:00:30.2]} 60. Rc6 {[%clk 0:00:21.4]} 60... Ka7 {[%clk
0:00:29.6]} 61. Rc4 {[%clk 0:00:22.2]} 61... Rxc4 {[%clk 0:00:29.5]} 62. Kxc4
{[%clk 0:00:24.1]} 62... Kb6 {[%clk 0:00:30.9]} 63. Kb4 {[%clk 0:00:25.8]} 63...
Kb7 {[%clk 0:00:32.2]} 64. Kc5 {[%clk 0:00:27.5]} 64... Kc7 {[%clk 0:00:33.5]}
65. b6+ {[%clk 0:00:29.2]} 65... Kb7 {[%clk 0:00:34.9]} 66. Kb5 {[%clk
0:00:30.9]} 66... Kb8 {[%clk 0:00:36.3]} 67. Kc6 {[%clk 0:00:32.6]} 67... Kc8
{[%clk 0:00:37.7]} 68. b7+ {[%clk 0:00:34.3]} 68... Kb8 {[%clk 0:00:39.1]} 69.
Kb6 {[%clk 0:00:35.9]} 1/2-1/2

[Event "*** Titled Tuesday Blitz"]
[Site "Chess.com"]
[Date "2018.06.05"]
[Round "7"]
[White "asms9699"]
[Black "bascheyaro"]
[Result "1-0"]
[WhiteElo "2467"]
[BlackElo "2651"]
[TimeControl "180+2"]
[EndTime "14:42:58 PDT"]
[Termination "asms9699 won on time"]

1. c4 {[%clk 0:03:01.9]} 1... e5 {[%clk 0:03:00.9]} 2. g3 {[%clk 0:03:03.4]}
2... Nc6 {[%clk 0:03:01.8]} 3. Bg2 {[%clk 0:03:04.9]} 3... g6 {[%clk 0:03:03.3]}
4. Nc3 {[%clk 0:03:05.9]} 4... Bg7 {[%clk 0:03:04.7]} 5. e4 {[%clk 0:03:07.4]}
5... Nge7 {[%clk 0:03:05.8]} 6. Nge2 {[%clk 0:03:09]} 6... O-O {[%clk
0:03:06.9]} 7. O-O {[%clk 0:03:10.5]} 7... d6 {[%clk 0:03:08.4]} 8. d3 {[%clk
0:03:12]} 8... Bg4 {[%clk 0:03:09]} 9. Be3 {[%clk 0:03:09.9]} 9... Qd7 {[%clk
0:03:09.5]} 10. Qd2 {[%clk 0:03:09.7]} 10... Nd4 {[%clk 0:03:02.6]} 11. f3
{[%clk 0:03:10.2]} 11... Bh3 {[%clk 0:02:59.2]} 12. Nd5 {[%clk 0:03:09.4]} 12...
Nxd5 {[%clk 0:02:58.1]} 13. cxd5 {[%clk 0:03:09.4]} 13... Bxg2 {[%clk
0:02:57.8]} 14. Kxg2 {[%clk 0:03:11.3]} 14... Nxe2 {[%clk 0:02:59]} 15. Qxe2
{[%clk 0:03:13.2]} 15... c5 {[%clk 0:02:59.3]} 16. dxc6 {[%clk 0:03:13.5]} 16...
bxc6 {[%clk 0:03:00.7]} 17. Rac1 {[%clk 0:03:14.6]} 17... c5 {[%clk 0:03:02]}
18. Rc4 {[%clk 0:03:12.8]} 18... a5 {[%clk 0:03:02.5]} 19. b3 {[%clk 0:03:09.3]}
19... f5 {[%clk 0:03:01.5]} 20. a3 {[%clk 0:02:53.9]} 20... Rab8 {[%clk
0:02:59.7]} 21. Rb1 {[%clk 0:02:52.1]} 21... Rb7 {[%clk 0:02:50.3]} 22. Qd2
{[%clk 0:02:36.4]} 22... Qf7 {[%clk 0:02:46.5]} 23. f4 {[%clk 0:02:25]} 23...
fxe4 {[%clk 0:02:27.7]} 24. dxe4 {[%clk 0:02:24.7]} 24... Rxb3 {[%clk
0:02:28.4]} 25. Rxb3 {[%clk 0:01:55.8]} 25... Qxc4 {[%clk 0:02:28.8]} 26. Qd3
{[%clk 0:01:53.5]} 26... Qe6 {[%clk 0:02:10.4]} 27. Rb6 {[%clk 0:01:45.9]} 27...
exf4 {[%clk 0:02:09.2]} 28. Bxf4 {[%clk 0:01:18.9]} 28... Qa2+ {[%clk
0:02:02.2]} 29. Kh3 {[%clk 0:01:12.8]} 29... g5 {[%clk 0:01:45]} 30. Bxd6 {[%clk
0:01:05.9]} 30... g4+ {[%clk 0:01:44.9]} 31. Kh4 {[%clk 0:00:41.2]} 31... Qxh2+
{[%clk 0:00:34.1]} 32. Kxg4 {[%clk 0:00:40.7]} 32... h5+ {[%clk 0:00:35.4]} 33.
Kg5 {[%clk 0:00:41.8]} 33... Qh3 {[%clk 0:00:36.4]} 34. Qd1 {[%clk 0:00:23.9]}
34... Rf6 {[%clk 0:00:31.2]} 35. Qxh5 {[%clk 0:00:13.1]} 35... Bh6+ {[%clk
0:00:31.9]} 36. Kxf6 {[%clk 0:00:12.5]} 36... Qxh5 {[%clk 0:00:31.8]} 37. Rb8+
{[%clk 0:00:13.6]} 37... Kh7 {[%clk 0:00:33.3]} 38. Rb7+ {[%clk 0:00:14.6]}
38... Bg7+ {[%clk 0:00:34.8]} 39. Rxg7+ {[%clk 0:00:15.4]} 39... Kh8 {[%clk
0:00:36.4]} 40. Rc7 {[%clk 0:00:10]} 40... Qf3+ {[%clk 0:00:37.3]} 41. Ke6
{[%clk 0:00:10]} 41... Kg8 {[%clk 0:00:30.1]} 42. e5 {[%clk 0:00:07.2]} 42... c4
{[%clk 0:00:30.2]} 43. Kd7 {[%clk 0:00:04.4]} 43... Qf7+ {[%clk 0:00:28.4]} 44.
Kd8 {[%clk 0:00:05.6]} 44... Qe6 {[%clk 0:00:28.4]} 45. Re7 {[%clk 0:00:06.5]}
45... Qd5 {[%clk 0:00:29]} 46. Kd7 {[%clk 0:00:03.7]} 46... c3 {[%clk
0:00:29.1]} 47. e6 {[%clk 0:00:04.6]} 47... c2 {[%clk 0:00:29.3]} 48. Re8+
{[%clk 0:00:05.5]} 48... Kg7 {[%clk 0:00:30.7]} 49. Rc8 {[%clk 0:00:06.7]} 49...
Qb7+ {[%clk 0:00:29.6]} 50. Rc7 {[%clk 0:00:07.8]} 50... Qxc7+ {[%clk 0:00:31]}
51. Bxc7 {[%clk 0:00:09.7]} 51... c1=Q {[%clk 0:00:31.8]} 52. e7 {[%clk
0:00:11.2]} 52... Qd1+ {[%clk 0:00:30.3]} 53. Ke6 {[%clk 0:00:11.5]} 53... Qe2+
{[%clk 0:00:28.4]} 54. Be5+ {[%clk 0:00:11.6]} 54... Kh7 {[%clk 0:00:25.6]} 55.
e8=Q {[%clk 0:00:11.9]} 55... Qc4+ {[%clk 0:00:26.7]} 56. Kf6 {[%clk 0:00:11]}
56... Qa6+ {[%clk 0:00:26.5]} 57. Qe6 {[%clk 0:00:11.1]} 1-0